[Event "Late-Titled-Tuesday-Blitz-December-26-2023"]
[Site "Chess.com"]
[Date "2023.12.26"]
[Round "9"]
[White "dmarcolino"]
[Black "nitpicker"]
[Result "1-0"]
[WhiteElo "2180"]
[BlackElo "2298"]
[TimeControl "180+1"]
[EndTime "15:44:20 PST"]
[Termination "dmarcolino won on time"]

1. d4 {[%clk 0:03:00.9]} 1... Nf6 {[%clk 0:02:59.4]} 2. c4 {[%clk 0:02:59.8]}
2... e6 {[%clk 0:02:58.8]} 3. Nf3 {[%clk 0:02:59.3]} 3... d5 {[%clk 0:02:57.6]}
4. g3 {[%clk 0:02:59]} 4... Bb4+ {[%clk 0:02:56.1]} 5. Bd2 {[%clk 0:02:57.9]}
5... Be7 {[%clk 0:02:56.5]} 6. Bg2 {[%clk 0:02:57.9]} 6... c6 {[%clk 0:02:57]}
7. O-O {[%clk 0:02:57.8]} 7... O-O {[%clk 0:02:57.7]} 8. Bf4 {[%clk 0:02:57.7]}
8... b6 {[%clk 0:02:57.5]} 9. Qc2 {[%clk 0:02:52.9]} 9... Bb7 {[%clk 0:02:57.2]}
10. Nbd2 {[%clk 0:02:53.3]} 10... Nbd7 {[%clk 0:02:56.3]} 11. e4 {[%clk
0:02:49.7]} 11... Rc8 {[%clk 0:02:45.1]} 12. e5 {[%clk 0:02:37.3]} 12... Ne8
{[%clk 0:02:45]} 13. cxd5 {[%clk 0:02:18.7]} 13... cxd5 {[%clk 0:02:40.7]} 14.
Qa4 {[%clk 0:02:18.5]} 14... a6 {[%clk 0:02:37.6]} 15. Rfc1 {[%clk 0:02:17.7]}
15... b5 {[%clk 0:02:34.3]} 16. Qd1 {[%clk 0:02:14.5]} 16... Nb6 {[%clk
0:02:32.6]} 17. b3 {[%clk 0:02:01.6]} 17... Ba3 {[%clk 0:02:30.4]} 18. Rxc8
{[%clk 0:02:01.6]} 18... Qxc8 {[%clk 0:02:20.5]} 19. Bf1 {[%clk 0:02:00.3]}
19... Qc3 {[%clk 0:02:06.7]} 20. Be2 {[%clk 0:01:45.5]} 20... Nc7 {[%clk
0:02:00.3]} 21. Nf1 {[%clk 0:01:42]} 21... Rc8 {[%clk 0:01:46.3]} 22. Bc1 {[%clk
0:01:37.9]} 22... Bf8 {[%clk 0:01:38.5]} 23. Bd2 {[%clk 0:01:36.9]} 23... Qc6
{[%clk 0:01:36.1]} 24. Rc1 {[%clk 0:01:36.3]} 24... Qd7 {[%clk 0:01:34.9]} 25.
Bd3 {[%clk 0:01:36.1]} 25... b4 {[%clk 0:01:32.8]} 26. h4 {[%clk 0:01:20.9]}
26... h6 {[%clk 0:01:31.5]} 27. Bb1 {[%clk 0:01:17.7]} 27... Nb5 {[%clk
0:01:28.4]} 28. Rxc8 {[%clk 0:01:17.5]} 28... Qxc8 {[%clk 0:01:26.1]} 29. h5
{[%clk 0:01:07]} 29... Nc3 {[%clk 0:01:25.1]} 30. Bxc3 {[%clk 0:01:06.6]} 30...
Qxc3 {[%clk 0:01:19.8]} 31. Kg2 {[%clk 0:00:49.3]} 31... Na8 {[%clk 0:01:13.7]}
32. Ng1 {[%clk 0:00:47.4]} 32... Qc7 {[%clk 0:00:23.4]} 33. Qd3 {[%clk
0:00:45.6]} 33... f5 {[%clk 0:00:24]} 34. exf6 {[%clk 0:00:45]} 34... gxf6
{[%clk 0:00:24.7]} 35. Kh2 {[%clk 0:00:20.3]} 35... e5 {[%clk 0:00:24]} 36. dxe5
{[%clk 0:00:12.6]} 36... fxe5 {[%clk 0:00:23.6]} 37. Qf5 {[%clk 0:00:13.2]}
37... Qe7 {[%clk 0:00:20.2]} 38. Nf3 {[%clk 0:00:12.3]} 38... Nb6 {[%clk
0:00:19.1]} 39. Nxe5 {[%clk 0:00:12.1]} 39... Bc8 {[%clk 0:00:18]} 40. Qf4
{[%clk 0:00:08]} 40... Qg7 {[%clk 0:00:16.3]} 41. Ng6 {[%clk 0:00:07.9]} 41...
Bc5 {[%clk 0:00:14.7]} 42. Ne3 {[%clk 0:00:07.4]} 42... d4 {[%clk 0:00:14.1]}
43. Nf5 {[%clk 0:00:07.7]} 43... Qh7 {[%clk 0:00:10.7]} 44. Qe5 {[%clk
0:00:04.7]} 44... Bxf5 {[%clk 0:00:08.7]} 45. Qxf5 {[%clk 0:00:03.8]} 45... Be7
{[%clk 0:00:07]} 46. Qe6+ {[%clk 0:00:03.7]} 46... Qf7 {[%clk 0:00:05.3]} 47.
Bf5 {[%clk 0:00:03.5]} 47... Qxe6 {[%clk 0:00:04.8]} 48. Bxe6+ {[%clk
0:00:04.4]} 48... Kg7 {[%clk 0:00:04.5]} 49. Ne5 {[%clk 0:00:04.6]} 49... Kf6
{[%clk 0:00:04.4]} 50. Nd7+ {[%clk 0:00:02.1]} 50... Nxd7 {[%clk 0:00:03.9]} 51.
Bxd7 {[%clk 0:00:03]} 51... Bc5 {[%clk 0:00:04.1]} 52. Kg2 {[%clk 0:00:03]}
52... Kg5 {[%clk 0:00:04.4]} 53. Kf3 {[%clk 0:00:03.3]} 53... Bb6 {[%clk
0:00:03.5]} 54. Be8 {[%clk 0:00:02.5]} 54... Bc7 {[%clk 0:00:02.8]} 55. Bg6
{[%clk 0:00:02.8]} 55... Be5 {[%clk 0:00:02.7]} 56. Ke4 {[%clk 0:00:02.9]} 56...
Bg7 {[%clk 0:00:02.4]} 57. f3 {[%clk 0:00:02.3]} 57... Bf6 {[%clk 0:00:01.1]}
58. g4 {[%clk 0:00:02.7]} 1-0

[Event "Late-Titled-Tuesday-Blitz-December-26-2023"]
[Site "Chess.com"]
[Date "2023.12.26"]
[Round "9"]
[White "anasta10"]
[Black "Zadar321"]
[Result "1-0"]
[WhiteElo "2606"]
[BlackElo "2454"]
[TimeControl "180+1"]
[EndTime "15:44:21 PST"]
[Termination "anasta10 won on time"]

1. Nf3 {[%clk 0:02:49.1]} 1... Nf6 {[%clk 0:02:59.9]} 2. d4 {[%clk 0:02:49.2]}
2... e6 {[%clk 0:02:59.8]} 3. c4 {[%clk 0:02:50.1]} 3... Nc6 {[%clk 0:02:59.8]}
4. Nc3 {[%clk 0:02:50.7]} 4... Bb4 {[%clk 0:02:59.8]} 5. Bd2 {[%clk 0:02:50.6]}
5... d6 {[%clk 0:02:59.9]} 6. Qc2 {[%clk 0:02:50.2]} 6... O-O {[%clk 0:02:59.7]}
7. e3 {[%clk 0:02:50.3]} 7... e5 {[%clk 0:02:59.5]} 8. d5 {[%clk 0:02:50.6]}
8... Bxc3 {[%clk 0:02:58.3]} 9. Bxc3 {[%clk 0:02:50.2]} 9... Nb8 {[%clk
0:02:58.8]} 10. Nd2 {[%clk 0:02:48.9]} 10... Nbd7 {[%clk 0:02:58.7]} 11. Be2
{[%clk 0:02:45.9]} 11... a5 {[%clk 0:02:59.2]} 12. O-O {[%clk 0:02:45]} 12...
Nc5 {[%clk 0:02:59.7]} 13. b3 {[%clk 0:02:44.8]} 13... h6 {[%clk 0:02:56.6]} 14.
a3 {[%clk 0:02:44.8]} 14... c6 {[%clk 0:02:52.1]} 15. dxc6 {[%clk 0:02:43.8]}
15... bxc6 {[%clk 0:02:51.9]} 16. b4 {[%clk 0:02:41.7]} 16... axb4 {[%clk
0:02:52.2]} 17. axb4 {[%clk 0:02:42.6]} 17... Rxa1 {[%clk 0:02:52.7]} 18. Rxa1
{[%clk 0:02:43.5]} 18... Ne6 {[%clk 0:02:53.1]} 19. Rd1 {[%clk 0:02:35.8]} 19...
Qc7 {[%clk 0:02:53.1]} 20. Nb3 {[%clk 0:02:28.7]} 20... d5 {[%clk 0:02:50]} 21.
Qb2 {[%clk 0:02:19.4]} 21... Qb8 {[%clk 0:02:24.8]} 22. Na5 {[%clk 0:01:53.8]}
22... d4 {[%clk 0:02:19.4]} 23. exd4 {[%clk 0:01:53.8]} 23... exd4 {[%clk
0:02:19.1]} 24. Bxd4 {[%clk 0:01:52.6]} 24... Nxd4 {[%clk 0:02:16.1]} 25. Qxd4
{[%clk 0:01:45.8]} 25... Qxb4 {[%clk 0:02:04.5]} 26. Nxc6 {[%clk 0:01:45.3]}
26... Qa4 {[%clk 0:02:02.8]} 27. Bf3 {[%clk 0:01:27.9]} 27... Be6 {[%clk
0:02:01.3]} 28. c5 {[%clk 0:01:23.2]} 28... Qa3 {[%clk 0:01:52.1]} 29. Qe3
{[%clk 0:01:10.6]} 29... Qb2 {[%clk 0:01:38]} 30. Nd4 {[%clk 0:01:05.7]} 30...
Bd5 {[%clk 0:01:34.2]} 31. c6 {[%clk 0:00:58.5]} 31... Re8 {[%clk 0:01:32.7]}
32. Qc1 {[%clk 0:00:40.5]} 32... Qb6 {[%clk 0:01:21.3]} 33. Bxd5 {[%clk
0:00:25.1]} 33... Nxd5 {[%clk 0:01:18.7]} 34. Nf3 {[%clk 0:00:25.6]} 34... Re2
{[%clk 0:01:04.5]} 35. Rf1 {[%clk 0:00:22.3]} 35... g5 {[%clk 0:00:38.8]} 36.
Nxg5 {[%clk 0:00:16.5]} 36... Qc7 {[%clk 0:00:20.2]} 37. Nf3 {[%clk 0:00:15.4]}
37... Nf4 {[%clk 0:00:18.9]} 38. Kh1 {[%clk 0:00:09.9]} 38... Re6 {[%clk
0:00:14.5]} 39. Rd1 {[%clk 0:00:06.3]} 39... Rxc6 {[%clk 0:00:13.1]} 40. Qb1
{[%clk 0:00:05.6]} 40... Ng6 {[%clk 0:00:12.6]} 41. Qf5 {[%clk 0:00:03.2]} 41...
Kg7 {[%clk 0:00:12]} 42. h3 {[%clk 0:00:03.2]} 42... Rf6 {[%clk 0:00:12.2]} 43.
Qd3 {[%clk 0:00:03.3]} 43... Nf4 {[%clk 0:00:12.2]} 44. Qd4 {[%clk 0:00:03.8]}
44... Qc6 {[%clk 0:00:11.2]} 45. Rg1 {[%clk 0:00:02.8]} 45... h5 {[%clk
0:00:10.9]} 46. Kh2 {[%clk 0:00:02.8]} 46... Qe6 {[%clk 0:00:09.1]} 47. Qe5
{[%clk 0:00:02.8]} 47... Qc6 {[%clk 0:00:07.4]} 48. Nd4 {[%clk 0:00:03]} 48...
Qc4 {[%clk 0:00:04.4]} 49. Nf3 {[%clk 0:00:03]} 49... Ng6 {[%clk 0:00:04]} 50.
Qg5 {[%clk 0:00:03.1]} 50... h4 {[%clk 0:00:03.5]} 51. Re1 {[%clk 0:00:02.5]}
51... Qc7+ {[%clk 0:00:03.1]} 52. Kh1 {[%clk 0:00:02.5]} 52... Qc6 {[%clk
0:00:03]} 53. Nxh4 {[%clk 0:00:02.8]} 1-0

[Event "Late-Titled-Tuesday-Blitz-December-26-2023"]
[Site "Chess.com"]
[Date "2023.12.26"]
[Round "9"]
[White "FREZZY23"]
[Black "Grammnik"]
[Result "1-0"]
[WhiteElo "2390"]
[BlackElo "2218"]
[TimeControl "180+1"]
[EndTime "15:44:23 PST"]
[Termination "FREZZY23 won on time"]

1. c4 {[%clk 0:02:59.4]} 1... c6 {[%clk 0:02:59.5]} 2. g3 {[%clk 0:02:59.3]}
2... d5 {[%clk 0:02:59.5]} 3. Bg2 {[%clk 0:03:00.1]} 3... Nf6 {[%clk 0:02:59.1]}
4. Nf3 {[%clk 0:03:00.7]} 4... Bf5 {[%clk 0:02:58.1]} 5. O-O {[%clk 0:03:01.1]}
5... e6 {[%clk 0:02:58.1]} 6. d4 {[%clk 0:03:01]} 6... Nbd7 {[%clk 0:02:58.1]}
7. Qb3 {[%clk 0:03:00.9]} 7... Qb6 {[%clk 0:02:56.9]} 8. c5 {[%clk 0:02:59.1]}
8... Qxb3 {[%clk 0:02:55.8]} 9. axb3 {[%clk 0:03:00]} 9... a6 {[%clk 0:02:53.9]}
10. Nc3 {[%clk 0:02:59.6]} 10... Be7 {[%clk 0:02:52.9]} 11. b4 {[%clk
0:02:59.6]} 11... O-O {[%clk 0:02:52.1]} 12. Nd2 {[%clk 0:02:54.8]} 12... h6
{[%clk 0:02:49]} 13. Nb3 {[%clk 0:02:54]} 13... e5 {[%clk 0:02:45.6]} 14. e3
{[%clk 0:02:51.5]} 14... Bd3 {[%clk 0:02:39]} 15. Re1 {[%clk 0:02:49.8]} 15...
e4 {[%clk 0:02:39.2]} 16. Na5 {[%clk 0:02:48.8]} 16... Rab8 {[%clk 0:02:37.7]}
17. f3 {[%clk 0:02:36.5]} 17... Rfe8 {[%clk 0:02:33.7]} 18. fxe4 {[%clk
0:02:33.8]} 18... Nxe4 {[%clk 0:02:28.6]} 19. Rd1 {[%clk 0:01:40.2]} 19... Bc2
{[%clk 0:02:28]} 20. Re1 {[%clk 0:01:33.9]} 20... Ndf6 {[%clk 0:02:21.2]} 21.
Bf1 {[%clk 0:01:26.2]} 21... Nxc3 {[%clk 0:02:16.5]} 22. bxc3 {[%clk 0:01:26.2]}
22... Be4 {[%clk 0:02:15.9]} 23. c4 {[%clk 0:01:25]} 23... Bd8 {[%clk
0:02:11.4]} 24. Bd2 {[%clk 0:01:16.2]} 24... Bc7 {[%clk 0:02:01.8]} 25. Be2
{[%clk 0:00:50.1]} 25... Re7 {[%clk 0:01:41.7]} 26. Rf1 {[%clk 0:00:46.2]} 26...
Bg6 {[%clk 0:00:56]} 27. cxd5 {[%clk 0:00:31.4]} 27... Nxd5 {[%clk 0:00:54]} 28.
Kf2 {[%clk 0:00:31.4]} 28... Rbe8 {[%clk 0:00:36.9]} 29. Ra3 {[%clk 0:00:31.2]}
29... Nf6 {[%clk 0:00:29.8]} 30. Bf3 {[%clk 0:00:22.8]} 30... Bxa5 {[%clk
0:00:26.5]} 31. bxa5 {[%clk 0:00:22.1]} 31... Be4 {[%clk 0:00:26.6]} 32. Rb3
{[%clk 0:00:19.1]} 32... Bxf3 {[%clk 0:00:25.9]} 33. Kxf3 {[%clk 0:00:19.6]}
33... Ne4 {[%clk 0:00:26.1]} 34. Bc1 {[%clk 0:00:14.1]} 34... Rd8 {[%clk
0:00:24.6]} 35. Re1 {[%clk 0:00:12.6]} 35... f5 {[%clk 0:00:22]} 36. Re2 {[%clk
0:00:12.3]} 36... Kf7 {[%clk 0:00:21.3]} 37. Reb2 {[%clk 0:00:11.8]} 37... Rdd7
{[%clk 0:00:21]} 38. Kf4 {[%clk 0:00:07.7]} 38... Ke6 {[%clk 0:00:19.4]} 39. g4
{[%clk 0:00:06.3]} 39... g5+ {[%clk 0:00:19.3]} 40. Kf3 {[%clk 0:00:06.4]} 40...
Kd5 {[%clk 0:00:12.1]} 41. gxf5 {[%clk 0:00:05.3]} 41... Rf7 {[%clk 0:00:12.1]}
42. Kg4 {[%clk 0:00:04.7]} 42... Nf6+ {[%clk 0:00:12.3]} 43. Kh3 {[%clk
0:00:04]} 43... Ne4 {[%clk 0:00:11.5]} 44. Rb1 {[%clk 0:00:04]} 44... h5 {[%clk
0:00:09]} 45. Kg2 {[%clk 0:00:03.9]} 45... Kc4 {[%clk 0:00:07.2]} 46. Ba3 {[%clk
0:00:03.1]} 46... Kd5 {[%clk 0:00:07.1]} 47. Rc1 {[%clk 0:00:02.9]} 47... g4
{[%clk 0:00:05.3]} 48. Rb2 {[%clk 0:00:01.9]} 48... Rxf5 {[%clk 0:00:04.9]} 49.
Rcb1 {[%clk 0:00:02.4]} 49... Rff7 {[%clk 0:00:03.4]} 50. Re2 {[%clk 0:00:01.8]}
50... Nc3 {[%clk 0:00:03.2]} 51. Reb2 {[%clk 0:00:02.5]} 51... Nxb1 {[%clk
0:00:02.7]} 52. Rxb1 {[%clk 0:00:03.4]} 52... Ke4 {[%clk 0:00:01]} 53. Re1
{[%clk 0:00:04]} 53... Rf4 {[%clk 0:00:00.7]} 54. exf4+ {[%clk 0:00:03.5]} 1-0

[Event "Late-Titled-Tuesday-Blitz-December-26-2023"]
[Site "Chess.com"]
[Date "2023.12.26"]
[Round "9"]
[White "KVAIDAN"]
[Black "2KTNGO"]
[Result "0-1"]
[WhiteElo "2384"]
[BlackElo "2529"]
[TimeControl "180+1"]
[EndTime "15:44:25 PST"]
[Termination "2KTNGO won by checkmate"]

1. f4 {[%clk 0:03:00.6]} 1... d5 {[%clk 0:02:59.2]} 2. Nf3 {[%clk 0:03:00.5]}
2... g6 {[%clk 0:02:57.5]} 3. e3 {[%clk 0:03:00]} 3... Bg7 {[%clk 0:02:57.1]} 4.
Be2 {[%clk 0:03:00.4]} 4... Nh6 {[%clk 0:02:55.7]} 5. O-O {[%clk 0:03:00.9]}
5... O-O {[%clk 0:02:56]} 6. d3 {[%clk 0:03:01.3]} 6... c5 {[%clk 0:02:51.9]} 7.
Qe1 {[%clk 0:02:57.9]} 7... Nc6 {[%clk 0:02:49.4]} 8. c3 {[%clk 0:02:57.9]} 8...
Qb6 {[%clk 0:02:42.3]} 9. Kh1 {[%clk 0:02:57.4]} 9... d4 {[%clk 0:02:38.2]} 10.
cxd4 {[%clk 0:02:55.1]} 10... cxd4 {[%clk 0:02:37.4]} 11. e4 {[%clk 0:02:55.5]}
11... Ng4 {[%clk 0:02:37]} 12. Na3 {[%clk 0:02:54.3]} 12... Nb4 {[%clk
0:02:25.9]} 13. Bd2 {[%clk 0:02:44.7]} 13... a5 {[%clk 0:02:25.1]} 14. Bxb4
{[%clk 0:02:39.1]} 14... axb4 {[%clk 0:02:19.5]} 15. Nc4 {[%clk 0:02:39]} 15...
Qd8 {[%clk 0:02:16.5]} 16. Qh4 {[%clk 0:02:35.5]} 16... Ne3 {[%clk 0:02:08.9]}
17. Rfc1 {[%clk 0:02:29.7]} 17... Be6 {[%clk 0:02:03.2]} 18. Ng5 {[%clk
0:02:27.1]} 18... h6 {[%clk 0:02:03.2]} 19. Nxe6 {[%clk 0:02:27.1]} 19... fxe6
{[%clk 0:02:03.5]} 20. Nxe3 {[%clk 0:02:23.2]} 20... dxe3 {[%clk 0:02:01.6]} 21.
Qg4 {[%clk 0:02:23.4]} 21... Qd7 {[%clk 0:01:44.9]} 22. Qxg6 {[%clk 0:02:19.2]}
22... Rxf4 {[%clk 0:01:43.4]} 23. Rf1 {[%clk 0:02:15.9]} 23... Raf8 {[%clk
0:01:34.9]} 24. Rxf4 {[%clk 0:02:15.4]} 24... Rxf4 {[%clk 0:01:34.9]} 25. Qg3
{[%clk 0:02:15.6]} 25... Qd6 {[%clk 0:01:24.3]} 26. Rc1 {[%clk 0:02:05.2]} 26...
Kh7 {[%clk 0:01:18]} 27. Bh5 {[%clk 0:02:04.6]} 27... Qc5 {[%clk 0:01:07.8]} 28.
Bg6+ {[%clk 0:01:47.5]} 28... Kh8 {[%clk 0:01:03.5]} 29. Rg1 {[%clk 0:01:37]}
29... Qd6 {[%clk 0:00:43.3]} 30. Qxe3 {[%clk 0:01:26.4]} 30... Bd4 {[%clk
0:00:42.2]} 31. Qh3 {[%clk 0:01:26.4]} 31... Kg7 {[%clk 0:00:38.8]} 32. Qg3
{[%clk 0:00:52.4]} 32... Bf2 {[%clk 0:00:38]} 33. e5 {[%clk 0:00:48.2]} 33...
Qxe5 {[%clk 0:00:37.2]} 34. Qh3 {[%clk 0:00:37.9]} 34... Rh4 {[%clk 0:00:37.2]}
35. d4 {[%clk 0:00:35.4]} 35... Qd6 {[%clk 0:00:21.1]} 36. Qxh4 {[%clk 0:00:35]}
36... Bxh4 {[%clk 0:00:20.5]} 37. Rd1 {[%clk 0:00:34.5]} 37... Qf4 {[%clk
0:00:19.7]} 38. Bb1 {[%clk 0:00:30.9]} 38... Bf2 {[%clk 0:00:19.2]} 39. Rf1
{[%clk 0:00:27.4]} 39... Qd2 {[%clk 0:00:18.7]} 40. h3 {[%clk 0:00:25.9]} 40...
Bxd4 {[%clk 0:00:18.6]} 41. Be4 {[%clk 0:00:25.1]} 41... Be5 {[%clk 0:00:18.6]}
42. Bxb7 {[%clk 0:00:24.9]} 42... Qxb2 {[%clk 0:00:18.5]} 43. Re1 {[%clk
0:00:21.9]} 43... Kf6 {[%clk 0:00:17.8]} 44. Rf1+ {[%clk 0:00:21.6]} 44... Kg5
{[%clk 0:00:18]} 45. Bc8 {[%clk 0:00:19.8]} 45... Qe2 {[%clk 0:00:17.2]} 46. Rb1
{[%clk 0:00:18.2]} 46... Qe4 {[%clk 0:00:16.7]} 47. Rf1 {[%clk 0:00:17.1]} 47...
Qc4 {[%clk 0:00:16.8]} 48. Re1 {[%clk 0:00:16.4]} 48... Qxc8 {[%clk 0:00:16.3]}
49. Rxe5+ {[%clk 0:00:16.7]} 49... Kf6 {[%clk 0:00:17]} 50. Re1 {[%clk
0:00:16.3]} 50... Qc3 {[%clk 0:00:17.4]} 51. Re2 {[%clk 0:00:16.5]} 51... Qc4
{[%clk 0:00:16.9]} 52. Rf2+ {[%clk 0:00:16.5]} 52... Kg5 {[%clk 0:00:17.2]} 53.
Kh2 {[%clk 0:00:14.3]} 53... e5 {[%clk 0:00:17.9]} 54. g3 {[%clk 0:00:14.1]}
54... e4 {[%clk 0:00:18.2]} 55. h4+ {[%clk 0:00:13.8]} 55... Kg6 {[%clk
0:00:18.7]} 56. Kh3 {[%clk 0:00:14]} 56... e3 {[%clk 0:00:19.2]} 57. Rf4 {[%clk
0:00:13.8]} 57... Qe6+ {[%clk 0:00:19.4]} 58. g4 {[%clk 0:00:13.6]} 58... e2
{[%clk 0:00:19.4]} 59. h5+ {[%clk 0:00:14.2]} 59... Kg5 {[%clk 0:00:18.9]} 60.
Rf5+ {[%clk 0:00:13.1]} 60... Qxf5 {[%clk 0:00:19]} 61. gxf5 {[%clk 0:00:13.7]}
61... e1=Q {[%clk 0:00:19.3]} 62. f6 {[%clk 0:00:14.6]} 62... Qf1+ {[%clk
0:00:19.5]} 63. Kg3 {[%clk 0:00:14.7]} 63... Qxf6 {[%clk 0:00:19.6]} 64. a3
{[%clk 0:00:13.9]} 64... Qf4+ {[%clk 0:00:20]} 65. Kg2 {[%clk 0:00:14.1]} 65...
bxa3 {[%clk 0:00:20.1]} 66. Kh3 {[%clk 0:00:12]} 66... a2 {[%clk 0:00:20.4]} 67.
Kg2 {[%clk 0:00:12.5]} 67... a1=Q {[%clk 0:00:20.3]} 68. Kh3 {[%clk 0:00:13.4]}
68... Qc3+ {[%clk 0:00:20.3]} 69. Kg2 {[%clk 0:00:13.5]} 69... Qfd2+ {[%clk
0:00:21]} 70. Kh1 {[%clk 0:00:12.9]} 70... Qcc1# {[%clk 0:00:21.7]} 0-1

[Event "Late-Titled-Tuesday-Blitz-December-26-2023"]
[Site "Chess.com"]
[Date "2023.12.26"]
[Round "9"]
[White "CFalcons8"]
[Black "lefonghua"]
[Result "1/2-1/2"]
[WhiteElo "2276"]
[BlackElo "2650"]
[TimeControl "180+1"]
[EndTime "15:44:33 PST"]
[Termination "Game drawn - insufficient material"]

1. e4 {[%clk 0:02:58.1]} 1... c5 {[%clk 0:02:59.7]} 2. Nf3 {[%clk 0:02:57.5]}
2... g6 {[%clk 0:03:00.2]} 3. d4 {[%clk 0:02:54.6]} 3... cxd4 {[%clk 0:03:01.1]}
4. Nxd4 {[%clk 0:02:55.1]} 4... Bg7 {[%clk 0:03:01.6]} 5. c4 {[%clk 0:02:53.4]}
5... Nc6 {[%clk 0:03:02.1]} 6. Be3 {[%clk 0:02:52.5]} 6... Nf6 {[%clk
0:03:01.9]} 7. Nc3 {[%clk 0:02:52]} 7... d6 {[%clk 0:03:01.9]} 8. Be2 {[%clk
0:02:45.7]} 8... O-O {[%clk 0:03:02]} 9. O-O {[%clk 0:02:45.3]} 9... Bd7 {[%clk
0:03:00.4]} 10. h3 {[%clk 0:02:36.9]} 10... Nxd4 {[%clk 0:02:59.3]} 11. Bxd4
{[%clk 0:02:34.6]} 11... Bc6 {[%clk 0:02:59.9]} 12. Qd3 {[%clk 0:02:29.6]} 12...
a5 {[%clk 0:02:55.9]} 13. a3 {[%clk 0:02:28.4]} 13... a4 {[%clk 0:02:53.1]} 14.
Nd5 {[%clk 0:02:23.7]} 14... Bxd5 {[%clk 0:02:50.5]} 15. exd5 {[%clk 0:02:24.2]}
15... Nd7 {[%clk 0:02:50.4]} 16. f4 {[%clk 0:02:18.5]} 16... Nc5 {[%clk
0:02:47.2]} 17. Qe3 {[%clk 0:02:01.1]} 17... Bxd4 {[%clk 0:02:46.7]} 18. Qxd4
{[%clk 0:02:02]} 18... Nb3 {[%clk 0:02:45.3]} 19. Qe3 {[%clk 0:02:00]} 19...
Nxa1 {[%clk 0:02:44.7]} 20. Rxa1 {[%clk 0:02:00.9]} 20... Qc7 {[%clk 0:02:44.3]}
21. Rc1 {[%clk 0:01:59.1]} 21... Qc5 {[%clk 0:02:43.7]} 22. Qxc5 {[%clk
0:01:58.7]} 22... dxc5 {[%clk 0:02:44.6]} 23. Bf3 {[%clk 0:01:58.8]} 23... Rab8
{[%clk 0:02:43.2]} 24. Bd1 {[%clk 0:01:53.8]} 24... Ra8 {[%clk 0:02:37.4]} 25.
Kf2 {[%clk 0:01:51.9]} 25... Rfd8 {[%clk 0:02:36.2]} 26. Bf3 {[%clk 0:01:48]}
26... Rab8 {[%clk 0:02:34.4]} 27. Re1 {[%clk 0:01:44.1]} 27... Kf8 {[%clk
0:02:33.9]} 28. Be2 {[%clk 0:01:36.8]} 28... b5 {[%clk 0:02:30.4]} 29. cxb5
{[%clk 0:01:37.7]} 29... Rxd5 {[%clk 0:02:30.1]} 30. Ke3 {[%clk 0:01:34.3]}
30... e6 {[%clk 0:02:24.1]} 31. Rc1 {[%clk 0:01:31.8]} 31... Rc8 {[%clk
0:02:02.4]} 32. Rc4 {[%clk 0:01:25.3]} 32... Rd4 {[%clk 0:01:54.4]} 33. Rxd4
{[%clk 0:01:16.4]} 33... cxd4+ {[%clk 0:01:55.3]} 34. Kxd4 {[%clk 0:01:16.6]}
34... Rc2 {[%clk 0:01:54.5]} 35. Bd3 {[%clk 0:01:10.8]} 35... Rxb2 {[%clk
0:01:46.7]} 36. Kc5 {[%clk 0:01:09.9]} 36... Ke7 {[%clk 0:01:43.7]} 37. b6
{[%clk 0:01:07.2]} 37... Kd8 {[%clk 0:01:40.1]} 38. Bb5 {[%clk 0:01:05.9]} 38...
Rb3 {[%clk 0:01:33.4]} 39. Bxa4 {[%clk 0:00:59.3]} 39... Rxa3 {[%clk 0:01:33.3]}
40. Bb5 {[%clk 0:00:59.4]} 40... Rg3 {[%clk 0:01:16.5]} 41. Bc6 {[%clk
0:00:56.7]} 41... Kc8 {[%clk 0:01:15.6]} 42. Kd6 {[%clk 0:00:56.4]} 42... g5
{[%clk 0:01:06.3]} 43. fxg5 {[%clk 0:00:51.6]} 43... Rxg5 {[%clk 0:01:06]} 44.
Ke7 {[%clk 0:00:51.7]} 44... Rf5 {[%clk 0:01:02.3]} 45. Be4 {[%clk 0:00:20.1]}
45... Rf4 {[%clk 0:00:55.9]} 46. Bxh7 {[%clk 0:00:19.5]} 46... e5 {[%clk
0:00:55.2]} 47. g3 {[%clk 0:00:13.8]} 47... Rf3 {[%clk 0:00:52]} 48. b7+ {[%clk
0:00:10.5]} 48... Kc7 {[%clk 0:00:48.7]} 49. Be4 {[%clk 0:00:08.8]} 49... Re3
{[%clk 0:00:42.3]} 50. Bd5 {[%clk 0:00:08.6]} 50... f5 {[%clk 0:00:41.3]} 51.
Kf6 {[%clk 0:00:05.5]} 51... f4 {[%clk 0:00:39.4]} 52. gxf4 {[%clk 0:00:06.4]}
52... exf4 {[%clk 0:00:39.8]} 53. h4 {[%clk 0:00:06]} 53... Rd3 {[%clk
0:00:23.1]} 54. Be4 {[%clk 0:00:04.9]} 54... Re3 {[%clk 0:00:18.8]} 55. Bd5
{[%clk 0:00:04.2]} 55... f3 {[%clk 0:00:18.1]} 56. Bxf3 {[%clk 0:00:03]} 56...
Rxf3+ {[%clk 0:00:18.3]} 57. Kg6 {[%clk 0:00:03.5]} 57... Kxb7 {[%clk 0:00:18]}
58. h5 {[%clk 0:00:04]} 58... Rg3+ {[%clk 0:00:17.2]} 59. Kf7 {[%clk 0:00:03.6]}
59... Rh3 {[%clk 0:00:16.4]} 60. Kg6 {[%clk 0:00:03.6]} 60... Rg3+ {[%clk
0:00:17]} 61. Kf7 {[%clk 0:00:03.5]} 61... Kc7 {[%clk 0:00:17.7]} 62. h6 {[%clk
0:00:03]} 62... Rh3 {[%clk 0:00:18.3]} 63. Kg7 {[%clk 0:00:03]} 63... Rg3+
{[%clk 0:00:18.9]} 64. Kf7 {[%clk 0:00:03.2]} 64... Rh3 {[%clk 0:00:18.9]} 65.
Kg7 {[%clk 0:00:03.7]} 65... Kd7 {[%clk 0:00:19.4]} 66. h7 {[%clk 0:00:03.6]}
66... Rg3+ {[%clk 0:00:20]} 67. Kf7 {[%clk 0:00:03.8]} 67... Rh3 {[%clk
0:00:19.6]} 68. Kg7 {[%clk 0:00:04.2]} 68... Ke7 {[%clk 0:00:19.3]} 69. h8=Q
{[%clk 0:00:04]} 69... Rg3+ {[%clk 0:00:19.5]} 70. Kh7 {[%clk 0:00:04.4]} 70...
Rh3+ {[%clk 0:00:15.9]} 71. Kg8 {[%clk 0:00:04.8]} 71... Rg3+ {[%clk 0:00:15.7]}
72. Qg7+ {[%clk 0:00:05.2]} 72... Rxg7+ {[%clk 0:00:16]} 73. Kxg7 {[%clk
0:00:06.1]} 1/2-1/2